[Event "African-ch Women 2019"]
[Site "Hammamet"]
[Date "2019.07.13"]
[Round "5.2"]
[White "Latreche, Sabrina"]
[Black "Miladi, Amen"]
[Result "*"]
[ECO "B41"]
[WhiteElo "2062"]
[BlackElo "1777"]
[Annotator "NA"]
[PlyCount "174"]
[EventDate "2019.07.09"]
[EventType "swiss"]
[EventCountry "TUN"]
[SourceTitle "playchess.com"]
[Source "ChessBase"]
[SourceQuality "1"]
[TimeControl "5400+30"]

1. e4 {[%emt 0:00:00]} c5 {[%emt 0:01:40]} 2. Nf3 {[%emt 0:00:00]} e6 {[%emt 0:00:07]} 3. d4 {[%emt 0:00:00]} cxd4 {[%emt 0:00:09]} 4. Nxd4 {[%emt 0:00:03]} a6 {[%emt 0:00:04]} 5. c4 {[%emt 0:00:15]} Nf6 {[%emt 0:00:11]} 6. Nc3 {[%emt 0:00:06]} Bb4 {[%emt 0:00:06]} 7. Bd3 {[%emt 0:00:14]} Nc6 {[%emt 0:01:42]} 8. Nde2 {[%emt 0:00:29]} d5 {[%emt 0:00:40]} 9. cxd5 {[%emt 0:02:45]} exd5 {[%emt 0:00:25]} 10. exd5 {[%emt 0:01:36]} Nxd5 {[%emt 0:01:03]} 11. O-O {[%emt 0:00:46]} Nxc3 {[%emt 0:02:48]} 12. bxc3 {[%emt 0:02:31]} Be7 {[%emt 0:01:25]} 13. Qc2 {[%emt 0:01:07]} Ne5 {[%emt 0:02:31]} 14. Be4 {[%emt 0:02:06]} Ng6 {[%emt 0:00:53]} 15. Rd1 {[%emt 0:04:00]} Qc7 {[%emt 0:01:05]} 16. Be3 {[%emt 0:07:08]} O-O {[%emt 0:03:34]} 17. Rab1 {[%emt 0:00:28]} Bd6 {[%emt 0:03:49]} 18. h3 {[%emt 0:03:10]} Qe7 {[%emt 0:01:11]} 19. c4 {[%emt 0:13:51]} f5 {[%emt 0:05:20]} 20. Bd5+ {[%emt 0:06:09]} Kh8 {[%emt 0:00:06]} 21. c5 {[%emt 0:01:29]} Bb8 {[%emt 0:01:26]} 22. c6 {[%emt 0:06:58]} bxc6 {[%emt 0:14:38]} 23. Bxc6 {[%emt 0:03:00]} Qc7 {[%emt 0:00:06]} 24. Bb6 {[%emt 0:21:46]} Qh2+ {[%emt 0:03:43]} 25. Kf1 {[%emt 0:00:03]} Qh1+ {[%emt 0:01:24]} 26. Ng1 {[%emt 0:00:05]} a5 {[%emt 0:03:29]} 27. Bxa8 {[%emt 0:08:09]} Ba6+ {[%emt 0:00:05]} 28. Ke1 {[%emt 0:02:04]} Qxg1+ {[%emt 0:00:11]} 29. Kd2 {[%emt 0:00:13]} Bf4+ {[%emt 0:00:26]} 30. Kc3 {[%emt 0:00:36]} Qh2 {[%emt 0:07:02]} 31. Bc6 {[%emt 0:03:42]} Ne5 {[%emt 0:03:19]} 32. Rh1 {[%emt 0:01:51]} Rc8 {[%emt 0:01:31]} 33. Rxh2 {[%emt 0:06:41]} Rxc6+ {[%emt 0:00:07]} 34. Kb2 {[%emt 0:01:22]} Rxc2+ {[%emt 0:00:18]} 35. Kxc2 {[%emt 0:00:04]} Bd3+ {[%emt 0:00:18]} 36. Kc3 {[%emt 0:01:21]} Bxb1 {[%emt 0:00:51]} 37. g3 {[%emt 0:00:24]} Nf3 {[%emt 0:01:36]} 38. Rh1 {[%emt 0:00:07]} Be5+ {[%emt 0:00:20]} 39. Kb3 {[%emt 0:00:20]} Nd2+ {[%emt 0:00:40]} 40. Ka4 {[%emt 0:00:00]} Bxa2 {[%emt 0:00:00]} 41. Bxa5 {[%emt 0:00:00]} Nc4 {[%emt 0:00:00]} 42. Re1 {[%emt 0:00:00]} Kg8 {[%emt 0:00:00]} 43. Re2 {[%emt 0:00:00]} Bb1 {[%emt 0:00:00]} 44. f4 {[%emt 0:00:00]} Bf6 {[%emt 0:00:00]} 45. Bb4 {[%emt 0:00:00]} Be4 {[%emt 0:00:00]} 46. Kb5 {[%emt 0:00:00]} Nb2 {[%emt 0:00:00]} 47. Rd2 {[%emt 0:00:00]} Nd3 {[%emt 0:00:00]} 48. Bd6 {[%emt 0:00:00]} Bc3 {[%emt 0:00:00]} 49. Rc2 {[%emt 0:00:00]} Be1 {[%emt 0:00:00]} 50. g4 {[%emt 0:00:00]} Bg3 {[%emt 0:00:00]} 51. Rc8+ {[%emt 0:00:00]} Kf7 {[%emt 0:00:00]} 52. gxf5 {[%emt 0:00:00]} Bxf5 {[%emt 0:00:00]} 53. Rc7+ {[%emt 0:00:00]} Kf6 {[%emt 0:00:00]} 54. Be7+ {[%emt 0:02:16]} Ke6 {[%emt 0:00:00]} 55. Bf8 {[%emt 0:01:25]} Bxf4 {[%emt 0:00:00]} 56. Rxg7 {[%emt 0:04:40]} Bh6 {[%emt 0:00:00]} 57. Re7+ {[%emt 0:00:41]} Kf6 {[%emt 0:00:00]} 58. Bxh6 {[%emt 0:00:29]} Kxe7 {[%emt 0:00:00]} 59. h4 {[%emt 0:00:16]} Ne5 {[%emt 0:00:00]} 60. Kc5 {[%emt 0:00:44]} Kf7 {[%emt 0:00:00]} 61. Bg5 {[%emt 0:00:44]} Nf3 {[%emt 0:00:00]} 62. Bd8 {[%emt 0:00:37]} Kg6 {[%emt 0:00:00]} 63. Kd6 {[%emt 0:00:38]} Kh5 {[%emt 0:00:00]} 64. Kd5 {[%emt 0:00:57]} Nxh4 {[%emt 0:00:00]} 65. Ke5 {[%emt 0:00:04]} Bc8 {[%emt 0:00:02]} 66. Kf4 {[%emt 0:00:20]} Ng6+ {[%emt 0:00:34]} 67. Kg3 {[%emt 0:00:11]} Ne5 {[%emt 0:00:22]} 68. Bf6 {[%emt 0:00:42]} Nf7 {[%emt 0:00:57]} 69. Kf4 {[%emt 0:00:35]} Kg6 {[%emt 0:00:17]} 70. Be7 {[%emt 0:00:30]} h5 {[%emt 0:00:34]} 71. Kg3 {[%emt 0:00:47]} Bg4 {[%emt 0:00:42]} 72. Kf4 {[%emt 0:00:45]} Bd1 {[%emt 0:01:27]} 73. Bh4 {[%emt 0:00:47]} Nh6 {[%emt 0:00:43]} 74. Bg3 {[%emt 0:00:46]} Nf5 {[%emt 0:00:22]} 75. Bh2 {[%emt 0:00:19]} h4 {[%emt 0:00:23]} 76. Bg1 {[%emt 0:00:22]} Be2 {[%emt 0:00:23]} 77. Bh2 {[%emt 0:00:17]} Nd4 {[%emt 0:01:44]} 78. Ke3 {[%emt 0:00:15]} Nf3 {[%emt 0:00:07]} 79. Bb8 {[%emt 0:01:14]} Bd1 {[%emt 0:00:10]} 80. Kf4 {[%emt 0:00:38]} Kh5 {[%emt 0:01:41]} 81. Bc7 {[%emt 0:00:15]} Ng5 {[%emt 0:01:04]} 82. Bb6 {[%emt 0:01:01]} Ne6+ {[%emt 0:00:18]} 83. Kf5 {[%emt 0:00:38]} h3 {[%emt 0:00:08]} 84. Bg1 {[%emt 0:00:08]} Nd4+ {[%emt 0:00:06]} 85. Kf4 {[%emt 0:00:45]} Kh4 {[%emt 0:00:28]} 86. Bf2+ {[%emt 0:00:09]} Kh5 {[%emt 0:00:19]} 87. Kg3 {[%emt 0:00:07]} Nf3 {[%emt 0:03:32]} *

[Event "African-ch Women 2019"]
[Site "Hammamet"]
[Date "2019.07.13"]
[Round "5.3"]
[White "Wafa, Shahenda"]
[Black "Ofowino, Toritsemuwa"]
[Result "1/2-1/2"]
[ECO "D02"]
[WhiteElo "2175"]
[BlackElo "1877"]
[Annotator "NA"]
[PlyCount "172"]
[EventDate "2019.07.09"]
[EventType "swiss"]
[EventCountry "TUN"]
[SourceTitle "playchess.com"]
[Source "ChessBase"]
[SourceQuality "1"]
[TimeControl "5400+30"]

1. d4 {[%emt 0:00:00]} d5 {[%emt 0:00:00]} 2. Bf4 {[%emt 0:00:00]} Nf6 {[%emt 0:00:00]} 3. e3 {[%emt 0:00:00]} e6 {[%emt 0:00:00]} 4. Nf3 {[%emt 0:00:22]} Bd6 {[%emt 0:00:13]} 5. Bg3 {[%emt 0:00:08]} Bxg3 {[%emt 0:01:55]} 6. hxg3 {[%emt 0:00:08]} Qd6 {[%emt 0:00:35]} 7. c3 {[%emt 0:01:53]} Nbd7 {[%emt 0:00:41]} 8. Nbd2 {[%emt 0:03:18]} e5 {[%emt 0:07:14]} 9. dxe5 {[%emt 0:08:13]} Nxe5 {[%emt 0:00:08]} 10. Nxe5 {[%emt 0:00:10]} Qxe5 {[%emt 0:00:04]} 11. Nf3 {[%emt 0:00:04]} Qe7 {[%emt 0:00:18]} 12. Bd3 {[%emt 0:00:46]} c6 {[%emt 0:03:39]} 13. Qc2 {[%emt 0:03:48]} g6 {[%emt 0:06:12]} 14. O-O-O {[%emt 0:06:24]} Bg4 {[%emt 0:06:38]} 15. Rde1 {[%emt 0:00:28]} Bxf3 {[%emt 0:06:52]} 16. gxf3 {[%emt 0:00:10]} O-O-O {[%emt 0:00:20]} 17. Qa4 {[%emt 0:11:08]} Kb8 {[%emt 0:04:14]} 18. Kb1 {[%emt 0:02:46]} h5 {[%emt 0:04:27]} 19. Rh4 {[%emt 0:15:08]} Rhe8 {[%emt 0:11:01]} 20. Rd1 Nd7 {[%emt 0:06:52]} 21. Qc2 {[%emt 0:09:48]} Ne5 {[%emt 0:11:25]} 22. Be2 {[%emt 0:01:57]} Rd6 {[%emt 0:03:25]} 23. f4 {[%emt 0:02:40]} Nd7 {[%emt 0:00:20]} 24. f5 {[%emt 0:00:54]} Rf6 {[%emt 0:01:34]} 25. Rf4 {[%emt 0:07:54]} Qe5 {[%emt 0:05:17]} 26. fxg6 {[%emt 0:02:10]} fxg6 {[%emt 0:00:29]} 27. Bd3 {[%emt 0:00:25]} g5 {[%emt 0:03:03]} 28. Rf5 {[%emt 0:11:29]} Rxf5 {[%emt 0:00:07]} 29. Bxf5 {[%emt 0:00:05]} Nf6 {[%emt 0:00:13]} 30. Rh1 {[%emt 0:02:37]} Rh8 {[%emt 0:00:44]} 31. Bh3 {[%emt 0:02:09]} Kc7 {[%emt 0:04:48]} 32. Kc1 {[%emt 0:00:53]} Rf8 {[%emt 0:02:08]} 33. Rf1 {[%emt 0:05:49]} Qe4 {[%emt 0:02:41]} 34. Qe2 {[%emt 0:01:41]} Re8 {[%emt 0:01:02]} 35. Kd2 {[%emt 0:00:39]} g4 {[%emt 0:03:00]} 36. f3 {[%emt 0:00:07]} Qe6 {[%emt 0:00:45]} 37. Bg2 {[%emt 0:00:45]} gxf3 {[%emt 0:01:46]} 38. Qxf3 {[%emt 0:00:58]} Ne4+ {[%emt 0:00:48]} 39. Ke2 {[%emt 0:00:54]} Re7 {[%emt 0:01:33]} 40. Qf4+ {[%emt 0:00:00]} Nd6 {[%emt 0:00:00]} 41. Rf3 {[%emt 0:00:00]} d4 {[%emt 0:00:00]} 42. Qxd4 {[%emt 0:00:00]} Qxa2 {[%emt 0:00:00]} 43. Qb4 {[%emt 0:00:00]} a5 {[%emt 0:00:00]} 44. Qa3 {[%emt 0:00:00]} Qxa3 {[%emt 0:00:00]} 45. bxa3 {[%emt 0:00:00]} b5 {[%emt 0:00:00]} 46. Rf6 {[%emt 0:00:00]} Re5 {[%emt 0:00:00]} 47. Bf3 {[%emt 0:00:00]} Rc5 {[%emt 0:00:00]} 48. Kd3 {[%emt 0:00:00]} Rg5 {[%emt 0:00:00]} 49. a4 {[%emt 0:03:23]} bxa4 {[%emt 0:00:00]} 50. Rf4 {[%emt 0:00:24]} a3 {[%emt 0:00:49]} 51. Ra4 {[%emt 0:01:22]} Kb6 {[%emt 0:01:17]} 52. Rxa3 {[%emt 0:00:12]} Nf5 {[%emt 0:00:31]} 53. Ra4 {[%emt 0:00:46]} Nxg3 {[%emt 0:01:31]} 54. Rh4 {[%emt 0:00:37]} Kb5 {[%emt 0:00:56]} 55. Bd1 {[%emt 0:00:41]} Kc5 {[%emt 0:01:20]} 56. Rc4+ {[%emt 0:00:32]} Kd6 {[%emt 0:00:14]} 57. Rd4+ {[%emt 0:00:08]} Rd5 {[%emt 0:01:03]} 58. Kc2 {[%emt 0:00:49]} c5 {[%emt 0:01:55]} 59. Rf4 {[%emt 0:01:05]} Nf5 {[%emt 0:01:09]} 60. Rf3 {[%emt 0:00:35]} Ke5 {[%emt 0:00:36]} 61. Rh3 {[%emt 0:00:09]} h4 {[%emt 0:00:32]} 62. Bg4 {[%emt 0:00:24]} Rd8 {[%emt 0:01:34]} 63. Bxf5 {[%emt 0:00:04]} Kxf5 {[%emt 0:00:02]} 64. Rxh4 {[%emt 0:00:10]} Ke5 {[%emt 0:00:16]} 65. Ra4 {[%emt 0:00:05]} Ra8 {[%emt 0:00:08]} 66. Kd3 {[%emt 0:00:18]} Kd5 {[%emt 0:00:18]} 67. e4+ {[%emt 0:00:34]} Kc6 {[%emt 0:00:45]} 68. Kc4 {[%emt 0:00:06]} Re8 {[%emt 0:01:14]} 69. Rxa5 {[%emt 0:00:41]} Rxe4+ {[%emt 0:00:03]} 70. Kd3 {[%emt 0:00:12]} Rh4 {[%emt 0:00:11]} 71. c4 {[%emt 0:01:01]} Rh3+ {[%emt 0:00:10]} 72. Kc2 {[%emt 0:00:06]} Kd6 {[%emt 0:00:19]} 73. Rb5 {[%emt 0:00:12]} Kc6 {[%emt 0:00:27]} 74. Ra5 {[%emt 0:00:14]} Rh2+ {[%emt 0:00:15]} 75. Kc3 {[%emt 0:00:08]} Rh3+ {[%emt 0:00:25]} 76. Kc2 {[%emt 0:00:05]} Kd6 {[%emt 0:00:17]} 77. Rb5 {[%emt 0:00:07]} Ra3 {[%emt 0:00:52]} 78. Kb2 {[%emt 0:00:28]} Ra6 {[%emt 0:00:20]} 79. Kc3 {[%emt 0:00:48]} Kc6 {[%emt 0:00:35]} 80. Rb8 {[%emt 0:01:01]} Ra3+ {[%emt 0:00:09]} 81. Kb2 {[%emt 0:00:43]} Rh3 {[%emt 0:00:06]} 82. Rb5 {[%emt 0:00:12]} Rh7 {[%emt 0:00:55]} 83. Kc3 {[%emt 0:00:11]} Rd7 {[%emt 0:00:28]} 84. Kc2 {[%emt 0:00:35]} Kd6 {[%emt 0:00:53]} 85. Kc3 {[%emt 0:00:10]} Rc7 {[%emt 0:00:21]} 86. Rb6+ {[%emt 0:01:04]} Ke5 {[%emt 0:00:00]} 1/2-1/2

[Event "African-ch Women 2019"]
[Site "Hammamet"]
[Date "2019.07.13"]
[Round "5.4"]
[White "Elansary, Eman"]
[Black "Ravelomanana, Sabine"]
[Result "0-1"]
[ECO "D11"]
[WhiteElo "1946"]
[BlackElo "1832"]
[Annotator "NA"]
[PlyCount "186"]
[EventDate "2019.07.09"]
[EventType "swiss"]
[EventCountry "TUN"]
[SourceTitle "playchess.com"]
[Source "ChessBase"]
[SourceQuality "1"]
[TimeControl "5400+30"]

1. d4 {[%emt 0:00:00]} d5 {[%emt 0:00:00]} 2. Nf3 {[%emt 0:00:00]} Nf6 {[%emt 0:00:00]} 3. e3 {[%emt 0:00:05]} Bg4 {[%emt 0:00:20]} 4. c4 {[%emt 0:00:34]} c6 {[%emt 0:00:21]} 5. Nc3 {[%emt 0:00:14]} e6 {[%emt 0:00:21]} 6. Qb3 {[%emt 0:01:21]} Qb6 {[%emt 0:01:32]} 7. c5 {[%emt 0:01:23]} Qc7 {[%emt 0:00:08]} 8. Ne5 {[%emt 0:00:31]} Bh5 {[%emt 0:01:49]} 9. f4 {[%emt 0:01:23]} Nbd7 {[%emt 0:04:39]} 10. Bd3 {[%emt 0:00:55]} Bg6 {[%emt 0:01:31]} 11. Qc2 {[%emt 0:01:08]} Bxd3 {[%emt 0:02:08]} 12. Qxd3 {[%emt 0:01:06]} Be7 {[%emt 0:00:51]} 13. b4 {[%emt 0:01:40]} Nf8 {[%emt 0:05:55]} 14. O-O {[%emt 0:04:38]} Ng6 {[%emt 0:01:43]} 15. Bd2 {[%emt 0:04:23]} Nd7 {[%emt 0:09:19]} 16. b5 {[%emt 0:02:59]} Ndxe5 {[%emt 0:00:20]} 17. fxe5 {[%emt 0:00:20]} O-O {[%emt 0:02:05]} 18. Be1 {[%emt 0:07:24]} f6 {[%emt 0:06:13]} 19. exf6 {[%emt 0:00:49]} Rxf6 {[%emt 0:00:26]} 20. Bg3 {[%emt 0:00:29]} Rxf1+ {[%emt 0:03:23]} 21. Rxf1 {[%emt 0:01:01]} Qd7 {[%emt 0:00:03]} 22. bxc6 {[%emt 0:01:39]} bxc6 {[%emt 0:00:45]} 23. Qa6 {[%emt 0:00:34]} e5 {[%emt 0:00:52]} 24. Rb1 {[%emt 0:01:33]} exd4 {[%emt 0:07:38]} 25. exd4 {[%emt 0:00:43]} Bf6 {[%emt 0:06:37]} 26. Bf2 {[%emt 0:04:05]} Nf4 {[%emt 0:09:28]} 27. Qb7 {[%emt 0:06:56]} Qxb7 {[%emt 0:09:22]} 28. Rxb7 {[%emt 0:00:07]} Ne6 {[%emt 0:00:13]} 29. Ne2 {[%emt 0:01:47]} Kf8 {[%emt 0:01:56]} 30. Kf1 {[%emt 0:02:48]} Ke8 {[%emt 0:00:07]} 31. Ke1 {[%emt 0:07:50]} Kd8 {[%emt 0:00:21]} 32. Rb4 {[%emt 0:02:33]} Kc8 {[%emt 0:01:20]} 33. Bg3 {[%emt 0:00:46]} Nc7 {[%emt 0:04:35]} 34. Nf4 {[%emt 0:04:26]} Na6 {[%emt 0:03:58]} 35. Ra4 {[%emt 0:02:46]} Kb7 {[%emt 0:00:12]} 36. Nd3 {[%emt 0:00:47]} Re8+ {[%emt 0:00:37]} 37. Ne5 {[%emt 0:00:55]} Nxc5 {[%emt 0:09:18]} 38. Rb4+ {[%emt 0:01:06]} Ka6 {[%emt 0:00:43]} 39. Kd1 {[%emt 0:04:07]} Bxe5 {[%emt 0:02:05]} 40. Bxe5 {[%emt 0:00:00]} g6 {[%emt 0:00:00]} 41. Bg3 {[%emt 0:00:00]} Ne4 {[%emt 0:00:00]} 42. Be1 {[%emt 0:00:00]} Re7 {[%emt 0:00:00]} 43. Rb3 {[%emt 0:00:00]} Rf7 {[%emt 0:00:00]} 44. Ke2 {[%emt 0:00:00]} Nd6 {[%emt 0:00:00]} 45. Bb4 {[%emt 0:00:00]} Nc4 {[%emt 0:00:00]} 46. Bc5 {[%emt 0:00:00]} Rb7 {[%emt 0:00:00]} 47. Rxb7 {[%emt 0:00:00]} Kxb7 {[%emt 0:00:00]} 48. Kf3 {[%emt 0:00:00]} Nd2+ {[%emt 0:00:00]} 49. Kf4 {[%emt 0:00:00]} Ne4 {[%emt 0:00:00]} 50. Be7 {[%emt 0:00:00]} Kc7 {[%emt 0:00:00]} 51. Ke5 {[%emt 0:00:00]} Kd7 {[%emt 0:00:00]} 52. Bb4 {[%emt 0:00:00]} a6 {[%emt 0:00:00]} 53. a3 {[%emt 0:00:00]} h6 {[%emt 0:00:00]} 54. h4 {[%emt 0:00:00]} h5 {[%emt 0:02:04]} 55. a4 {[%emt 0:01:45]} g5 {[%emt 0:01:29]} 56. hxg5 {[%emt 0:01:05]} Nxg5 {[%emt 0:00:07]} 57. Bc5 {[%emt 0:06:08]} Ne4 {[%emt 0:02:38]} 58. Bb4 {[%emt 0:05:31]} Nf2 {[%emt 0:03:18]} 59. Kf5 {[%emt 0:01:57]} Nd3 {[%emt 0:00:43]} 60. Ba3 {[%emt 0:01:49]} c5 {[%emt 0:00:21]} 61. dxc5 {[%emt 0:01:37]} Kc6 {[%emt 0:00:08]} 62. Kg5 {[%emt 0:01:22]} Nxc5 {[%emt 0:00:13]} 63. Kxh5 {[%emt 0:00:26]} Ne6 {[%emt 0:01:43]} 64. Kg4 {[%emt 0:00:38]} d4 {[%emt 0:00:26]} 65. Kf5 {[%emt 0:01:18]} Kd5 {[%emt 0:00:05]} 66. g4 {[%emt 0:00:36]} d3 {[%emt 0:00:04]} 67. Bc1 {[%emt 0:00:21]} Nd4+ {[%emt 0:02:56]} 68. Kf6 {[%emt 0:03:32]} Nb3 {[%emt 0:00:08]} 69. Bf4 {[%emt 0:00:56]} d2 {[%emt 0:00:05]} 70. Bxd2 {[%emt 0:00:07]} Nxd2 {[%emt 0:00:05]} 71. Kf5 {[%emt 0:00:20]} Ne4 {[%emt 0:00:21]} 72. a5 {[%emt 0:00:27]} Nd6+ {[%emt 0:01:19]} 73. Kf4 {[%emt 0:02:44]} Ke6 {[%emt 0:02:00]} 74. Ke3 {[%emt 0:02:17]} Nc4+ {[%emt 0:00:18]} 75. Kd4 {[%emt 0:00:11]} Nxa5 {[%emt 0:00:38]} 76. Kc5 {[%emt 0:00:10]} Nb7+ {[%emt 0:00:06]} 77. Kb6 {[%emt 0:01:02]} a5 {[%emt 0:00:06]} 78. Kb5 {[%emt 0:00:04]} Kf6 {[%emt 0:00:07]} 79. Ka4 {[%emt 0:00:35]} Kg5 {[%emt 0:00:04]} 80. Kb5 {[%emt 0:00:17]} Kxg4 {[%emt 0:00:06]} 81. Kc4 {[%emt 0:00:34]} Kf4 {[%emt 0:00:08]} 82. Kb5 {[%emt 0:02:36]} Ke3 {[%emt 0:00:15]} 83. Ka4 {[%emt 0:00:11]} Kd4 {[%emt 0:00:19]} 84. Ka3 {[%emt 0:00:27]} Nc5 {[%emt 0:00:16]} 85. Ka2 {[%emt 0:00:42]} Kc3 {[%emt 0:00:32]} 86. Ka3 {[%emt 0:00:26]} a4 {[%emt 0:00:44]} 87. Ka2 {[%emt 0:00:25]} Kb4 {[%emt 0:00:06]} 88. Kb2 {[%emt 0:02:12]} Ne4 {[%emt 0:02:31]} 89. Ka2 {[%emt 0:01:08]} a3 {[%emt 0:02:51]} 90. Ka1 {[%emt 0:01:33]} Kb3 {[%emt 0:00:13]} 91. Kb1 {[%emt 0:00:10]} Nd6 {[%emt 0:00:09]} 92. Ka1 {[%emt 0:00:18]} Nc4 {[%emt 0:00:04]} 93. Kb1 {[%emt 0:00:21]} Ne3 {[%emt 0:00:10]} 0-1

[Event "African-ch Women 2019"]
[Site "Hammamet"]
[Date "2019.07.13"]
[Round "5.5"]
[White "Moaataz, Ayah"]
[Black "Mwango, Lorita"]
[Result "1/2-1/2"]
[ECO "C05"]
[WhiteElo "2031"]
[BlackElo "1931"]
[Annotator "NA"]
[PlyCount "75"]
[EventDate "2019.07.09"]
[EventType "swiss"]
[EventCountry "TUN"]
[SourceTitle "playchess.com"]
[Source "ChessBase"]
[SourceQuality "1"]
[TimeControl "5400+30"]

1. e4 {[%emt 0:00:22]} e6 {[%emt 0:00:08]} 2. d4 {[%emt 0:00:26]} d5 {[%emt 0:00:06]} 3. Nd2 {[%emt 0:00:06]} Nf6 {[%emt 0:02:16]} 4. e5 {[%emt 0:00:07]} Nfd7 {[%emt 0:00:15]} 5. f4 {[%emt 0:00:33]} c5 {[%emt 0:00:09]} 6. c3 {[%emt 0:00:10]} Nc6 {[%emt 0:00:14]} 7. Ndf3 {[%emt 0:00:15]} cxd4 {[%emt 0:02:57]} 8. cxd4 {[%emt 0:00:10]} Qb6 {[%emt 0:00:38]} 9. a3 {[%emt 0:05:19]} Be7 {[%emt 0:01:21]} 10. b4 {[%emt 0:01:34]} a6 {[%emt 0:03:02]} 11. Bb2 {[%emt 0:00:44]} Na7 {[%emt 0:04:45]} 12. Bd3 {[%emt 0:01:43]} g6 {[%emt 0:00:27]} 13. Ne2 {[%emt 0:00:20]} a5 {[%emt 0:01:13]} 14. O-O {[%emt 0:13:52]} axb4 {[%emt 0:06:06]} 15. axb4 {[%emt 0:00:54]} Bxb4 {[%emt 0:00:08]} 16. Nc3 {[%emt 0:01:50]} O-O {[%emt 0:04:20]} 17. g4 {[%emt 0:02:21]} Rb8 {[%emt 0:09:26]} 18. Na4 {[%emt 0:07:09]} Qd8 {[%emt 0:01:53]} 19. f5 {[%emt 0:01:50]} b5 {[%emt 0:28:38]} 20. Nc3 {[%emt 0:02:09]} Qb6 {[%emt 0:00:23]} 21. Kh1 Rd8 {[%emt 0:14:56]} 22. Qc2 {[%emt 0:07:08]} Nf8 {[%emt 0:04:51]} 23. Qc1 {[%emt 0:02:25]} exf5 {[%emt 0:05:42]} 24. gxf5 {[%emt 0:02:04]} Bxf5 {[%emt 0:03:09]} 25. Bxf5 {[%emt 0:00:51]} gxf5 {[%emt 0:00:10]} 26. Qg5+ {[%emt 0:01:33]} Ng6 {[%emt 0:00:46]} 27. h4 {[%emt 0:01:09]} Be7 {[%emt 0:03:49]} 28. Qxf5 {[%emt 0:00:39]} Rb7 {[%emt 0:00:20]} 29. h5 {[%emt 0:00:29]} Nf8 {[%emt 0:00:56]} 30. Rg1+ {[%emt 0:00:49]} Kh8 {[%emt 0:00:01]} 31. Qg4 {[%emt 0:00:15]} Ne6 {[%emt 0:00:02]} 32. Nxd5 {[%emt 0:00:13]} Qc6 {[%emt 0:00:48]} 33. Nxe7 {[%emt 0:02:16]} Rxe7 {[%emt 0:00:11]} 34. d5 {[%emt 0:03:00]} Qxd5 {[%emt 0:00:52]} 35. Rad1 {[%emt 0:00:52]} Qa8 {[%emt 0:00:55]} 36. Qf5 {[%emt 0:01:41]} Rg8 {[%emt 0:01:20]} 37. Qf6+ {[%emt 0:00:58]} Ng7 {[%emt 0:00:34]} 38. h6 {[%emt 0:00:42]} 1/2-1/2

[Event "African-ch Women 2019"]
[Site "Hammamet"]
[Date "2019.07.14"]
[Round "6.1"]
[White "Wafa, Shrook"]
[Black "Ofowino, Toritsemuwa"]
[Result "1-0"]
[ECO "B07"]
[WhiteElo "2144"]
[BlackElo "1877"]
[Annotator "NA"]
[PlyCount "45"]
[EventDate "2019.07.09"]
[EventType "swiss"]
[EventCountry "TUN"]
[SourceTitle "playchess.com"]
[Source "ChessBase"]
[SourceQuality "1"]
[TimeControl "5400+30"]

1. e4 {[%emt 0:00:00]} d6 {[%emt 0:00:00]} 2. d4 {[%emt 0:00:00]} Nf6 {[%emt 0:00:00]} 3. Nc3 {[%emt 0:00:11]} c6 {[%emt 0:00:00]} 4. Bd3 {[%emt 0:00:34]} e5 {[%emt 0:00:20]} 5. dxe5 {[%emt 0:01:33]} dxe5 {[%emt 0:00:12]} 6. Nf3 {[%emt 0:00:19]} Qc7 {[%emt 0:01:49]} 7. Bg5 {[%emt 0:02:09]} Be7 {[%emt 0:00:47]} 8. Qe2 {[%emt 0:00:37]} Be6 {[%emt 0:00:22]} 9. Bc4 {[%emt 0:01:50]} Bxc4 {[%emt 0:01:22]} 10. Qxc4 {[%emt 0:00:17]} Nbd7 {[%emt 0:00:25]} 11. O-O-O {[%emt 0:02:13]} O-O-O {[%emt 0:00:25]} 12. Qxf7 {[%emt 0:00:32]} Bc5 {[%emt 0:00:19]} 13. Qxg7 {[%emt 0:01:10]} Rhg8 {[%emt 0:00:32]} 14. Qf7 {[%emt 0:02:57]} Rdf8 {[%emt 0:00:27]} 15. Qe6 {[%emt 0:00:32]} Re8 {[%emt 0:00:25]} 16. Qf5 {[%emt 0:02:45]} Ref8 {[%emt 0:00:31]} 17. Bxf6 {[%emt 0:01:16]} Rxf6 {[%emt 0:00:20]} 18. Rxd7 {[%emt 0:00:31]} Qxd7 {[%emt 0:00:37]} 19. Qxf6 {[%emt 0:00:15]} Bxf2 {[%emt 0:00:49]} 20. Nxe5 {[%emt 0:02:41]} Be3+ {[%emt 0:00:09]} 21. Kb1 {[%emt 0:00:08]} Qe8 {[%emt 0:00:23]} 22. Qf5+ {[%emt 0:01:32]} Kb8 {[%emt 0:00:14]} 23. Nd7+ {[%emt 0:00:26]} 1-0

[Event "African-ch Women 2019"]
[Site "Hammamet"]
[Date "2019.07.14"]
[Round "6.2"]
[White "Latreche, Sabrina"]
[Black "Ravelomanana, Sabine"]
[Result "1-0"]
[ECO "C55"]
[WhiteElo "2062"]
[BlackElo "1832"]
[Annotator "NA"]
[PlyCount "75"]
[EventDate "2019.07.09"]
[EventType "swiss"]
[EventCountry "TUN"]
[SourceTitle "playchess.com"]
[Source "ChessBase"]
[SourceQuality "1"]
[TimeControl "5400+30"]

1. e4 {[%emt 0:00:00]} e5 {[%emt 0:00:00]} 2. Nf3 {[%emt 0:00:00]} Nc6 {[%emt 0:00:00]} 3. Bc4 {[%emt 0:00:00]} Nf6 {[%emt 0:00:14]} 4. d3 {[%emt 0:00:05]} Be7 {[%emt 0:00:11]} 5. O-O {[%emt 0:00:12]} O-O {[%emt 0:00:04]} 6. Re1 {[%emt 0:00:04]} d6 {[%emt 0:00:13]} 7. a4 {[%emt 0:00:14]} Bg4 {[%emt 0:01:48]} 8. c3 {[%emt 0:00:21]} Kh8 {[%emt 0:04:25]} 9. a5 {[%emt 0:01:39]} Nd7 {[%emt 0:03:56]} 10. a6 {[%emt 0:09:18]} Nc5 {[%emt 0:08:37]} 11. b4 {[%emt 0:01:20]} Nxa6 {[%emt 0:12:29]} 12. b5 {[%emt 0:01:20]} Nc5 {[%emt 0:00:01]} 13. bxc6 {[%emt 0:00:25]} bxc6 {[%emt 0:00:04]} 14. h3 {[%emt 0:03:08]} Bh5 {[%emt 0:00:48]} 15. d4 {[%emt 0:01:34]} exd4 {[%emt 0:00:42]} 16. cxd4 {[%emt 0:00:06]} Nxe4 {[%emt 0:02:17]} 17. Rxe4 {[%emt 0:00:17]} d5 {[%emt 0:00:04]} 18. Rxe7 {[%emt 0:04:02]} Qxe7 {[%emt 0:00:46]} 19. Ba3 {[%emt 0:02:06]} Bxf3 {[%emt 0:04:38]} 20. Bxe7 {[%emt 0:01:51]} Bxd1 {[%emt 0:00:07]} 21. Bxf8 {[%emt 0:00:18]} dxc4 {[%emt 0:00:07]} 22. Bc5 {[%emt 0:01:45]} a5 {[%emt 0:00:20]} 23. Na3 {[%emt 0:00:52]} Bb3 {[%emt 0:03:57]} 24. Rc1 {[%emt 0:00:05]} a4 {[%emt 0:00:05]} 25. Nxc4 {[%emt 0:00:22]} f6 {[%emt 0:01:27]} 26. Na3 {[%emt 0:00:49]} Re8 {[%emt 0:00:36]} 27. Kf1 {[%emt 0:03:53]} Kg8 {[%emt 0:00:06]} 28. Nc4 {[%emt 0:03:49]} Ra8 {[%emt 0:02:26]} 29. Ke2 {[%emt 0:04:58]} Kf7 {[%emt 0:00:18]} 30. Kd3 {[%emt 0:00:34]} h5 {[%emt 0:06:55]} 31. Ba3 {[%emt 0:02:24]} g5 {[%emt 0:03:46]} 32. Ne3 {[%emt 0:01:27]} Ra6 {[%emt 0:01:41]} 33. d5 {[%emt 0:04:33]} cxd5 {[%emt 0:00:04]} 34. Rxc7+ {[%emt 0:00:06]} Kg6 {[%emt 0:00:07]} 35. g4 {[%emt 0:00:17]} hxg4 {[%emt 0:00:50]} 36. hxg4 {[%emt 0:00:08]} f5 {[%emt 0:05:54]} 37. gxf5+ {[%emt 0:02:44]} Kf6 {[%emt 0:00:40]} 38. Bb2+ {[%emt 0:00:22]} 1-0